Cogmind - Beta 15 @@@ ROGUE MODE // 2025.08.12 @ 16:05:34 Player: beans Result: Destroyed by S-27 Virus with Autogun Performance ------------- Evolutions (4) 2000 Regions Visited (5) 1000 Robots Destroyed (66) 330 Value Destroyed (2203) 2203 Prototype IDs (15) 300 Alien Tech Used (0) 0 Bonus (890) 890 TOTAL SCORE: 6723 Bonus ------- High Alert Combat Kills 90 Registered with UFD 300 Met Optimus in HQ 500 Cogmind --------- Core Integrity 0/850 Matter 0/300 Energy 24/100 System Corruption 9% Temperature Cool (4) Movement Walking (120) Location -6/Factory Parts ------- > --- POWER (2) -------- (None) > --- PROPULSION (4) --- Flexi-carbon Leg Flexi-carbon Leg Flexi-carbon Leg > --- UTILITY (5) ------ A0-MCA's Component Scanner > --- WEAPON (4) ------- Gauss Rifle > --- INVENTORY (5) ---- Precision Rocket Launcher Peak State ------------ > --- POWER ------------ Light Antimatter Reactor > --- PROPULSION ------- Flexi-carbon Leg Flexi-carbon Leg > --- UTILITY ---------- Advanced Heat Sink Compact Battery Improved Core Shielding A0-MCA's Component Scanner > --- WEAPON ----------- Improved Spread Laser Plasma Cannon Heavy Ion Cannon Magnetic Acceleration Cannon > --- INVENTORY -------- Power Amplifier Proton Missile Launcher [Rating: 57] Favorites ----------- Power Improved Deuterium Engine Engine Improved Deuterium Engine Power Core Fission Core Reactor Light Antimatter Reactor Propulsion Flexi-carbon Leg Leg Flexi-carbon Leg Wheel Wheel Hover Unit Improved Hover Unit Utility A0-MCA's Component Scanner Device Advanced Heat Sink Storage Compact Battery Processor A0-MCA's Component Scanner Hackware Hacking Suite Protection Improved Core Shielding Weapon Field Laser Energy Gun Field Laser Energy Cannon Heavy Ion Cannon Ballistic Gun Heavy Machine Gun Ballistic Cannon Magnetic Acceleration Cannon Launcher Shock Bomb Launcher Build | -11 -10 -10 -8 -8 -6 ------- Run | Yrd Mat Sub Rec Scr Fac Slots Evolved 8 | . . . . . 8 Power 1 | . . . . . 1 Propulsion 2 | . . . . . 2 Utility 3 | . . . . . 3 Weapon 2 | . . . . . 2 Parts Attached 71 | 5 2 . 7 17 40 Power 9 | 1 . . 2 2 4 Engine 7 | 1 . . 2 2 2 Core 1 | . . . . . 1 Reactor 1 | . . . . . 1 Propulsion 25 | 2 . . 1 9 13 Treads . | . . . . . . Leg 19 | 2 . . 1 9 7 Wheel 3 | . . . . . 3 Hover 3 | . . . . . 3 Flight . | . . . . . . Utility 15 | . 1 . 2 3 9 Device 9 | . . . 1 2 6 Storage 1 | . . . 1 . . Processor 3 | . . . . 1 2 Hackware 1 | . 1 . . . . Protection 1 | . . . . . 1 Artifact . | . . . . . . Weapon 22 | 2 1 . 2 3 14 Energy Gun 9 | 2 . . 1 2 4 Energy Cannon 6 | . 1 . 1 1 3 Ballistic Gun 2 | . . . . . 2 Ballistic Cannon 2 | . . . . . 2 Launcher 3 | . . . . . 3 Special Weapon . | . . . . . . Impact Weapon . | . . . . . . Slashing Weapon . | . . . . . . Piercing Weapon . | . . . . . . Special Melee Weapon . | . . . . . . Unidentified Prototypes . | . . . . . . Parts Lost 43 | . . 2 . 3 38 Power 6 | . . 1 . . 5 Propulsion 12 | . . 1 . 2 9 Utility 11 | . . . . 1 10 Weapon 14 | . . . . . 14 Highest Loss Streak 7 | . . 2 . 2 7 To Critical Strikes 1 | . . . . . 1 Average Backups 3 | . 1 2 3 4 3 Power . | . . . . . . Propulsion . | . . . . . . Utility . | . . . . 1 . Weapon 2 | . 1 2 2 3 2 Tool/Special . | . . . . . . Unused Backups 6 | 2 . . . 3 1 Power . | . . . . . . Propulsion 2 | 2 . . . . . Utility 1 | . . . . 1 . Weapon 3 | . . . . 2 1 Tool/Special . | . . . . . . Average Slot Usage (%) 72 | . 72 69 85 99 55 Engine 8 | . 14 14 14 14 3 Leg 15 | . 28 26 21 27 6 Hover 1 | . . . . . 2 Device 11 | . . . 12 13 9 Storage 3 | . . . 12 4 1 Processor 7 | . . . . 9 8 Protection 1 | . . . . . 2 Energy Gun 11 | . 9 . 8 21 7 Energy Cannon 6 | . 9 14 13 6 4 Peak Build Rating 57 | 5 8 7 16 30 57 Average Rating 32 | 3 6 6 12 25 41 On Entrance 10 | . 5 7 5 16 30 Naked Turns . | . . . . . . Heaviest Build 43 | 8 8 8 18 22 43 Greatest Support 60 | 20 20 20 20 38 60 Greatest Overweight (x) 9 | . . . 1 5 9 Average Overweight (x) . | . . . . . 1 Largest Inventory Capacity 5 | 5 5 5 5 5 5 Average Capacity 5 | 5 5 5 5 5 5 Most Carried 5 | 2 2 3 5 5 5 Average Carried 3 | . 1 2 3 4 3 Final Capacity 5 | 5 5 5 5 5 5 Final Carried 5 | . 2 3 4 5 1 Class Distribution -------------------- 47% | Mutant 18% | Scavenger-Mutant 13% | Derelict-Mutant 13% | Tank 4% | Scavenger-Tank Dominant Class ---------------- Mutant | -10/Materials Mutant | -10/Subcaves Mutant | -8/Recycling Mutant | -8/Scraptown Scavenger-Mutant | -6/Factory Resources | -11 -10 -10 -8 -8 -6 ----------- Run | Yrd Mat Sub Rec Scr Fac Matter Collected 1351 | 250 20 . 60 170 851 Remotely . | . . . . . . Salvage Created 2965 | 102 . . 826 187 1850 Parts 136 | 9 . . 32 7 88 Haulers Intercepted . | . . . . . . Recyclers Shooed 9 | . . . . . 9 Parts Field Recycled . | . . . . . . Retrieved Matter . | . . . . . . Parts Self-Destructed 7 | . . 7 . . . Prevented . | . . . . . . Kills | -11 -10 -10 -8 -8 -6 ------- Run | Yrd Mat Sub Rec Scr Fac Combat Hostiles Destroyed 36 | . . . 3 3 30 Guns 14 | . . . . 3 11 Cannons 17 | . . . 2 . 15 AOE 5 | . . . 1 . 4 Classes Destroyed 15 | 2 . . 2 3 8 Worker 9 | . . . . . 9 Builder 5 | . . . 1 . 4 Tunneler 2 | 2 . . . . . Recycler 11 | 1 . . 8 . 2 Operator 2 | . . . . . 2 Watcher 1 | . . . . . 1 Grunt 14 | . . . . . 14 Brawler 1 | . . . . . 1 Duelist 1 | . . . . . 1 Sentry 7 | . . . 3 . 4 Hunter 3 | . . . . . 3 Programmer 7 | . . . . . 7 Explorer 1 | . . . . 1 . Ranger 1 | . . . . 1 . Scrapper 1 | . . . . 1 . Best Kill Streak 9 | 2 . . 5 1 9 Combat Bots Only 5 | . . . 1 1 5 Max Kills in Single Turn 2 | 1 . . 1 1 2 Gunslinging . | . . . . . . Exploded 2 | . . . 1 . 2 Melee . | . . . . . . Uniques/NPCs Destroyed . | . . . . . . Combat | -11 -10 -10 -8 -8 -6 -------- Run | Yrd Mat Sub Rec Scr Fac Hostile Shots Fired 534 | . . 63 6 17 448 Missed 212 | . . 26 1 4 181 Hits 322 | . . 37 5 13 267 Melee 5 | . . . . 1 4 Projectile 317 | . . 37 5 12 263 AOE 1 | . . 1 . . . Critical Strikes 13 | . . . . 1 12 Damage Taken 4659 | . . 387 76 287 3909 Core 1025 | . . 97 . 70 858 Absorbed by Shields 60 | . . . . . 60 Redirected to Shielding 103 | . . . . . 103 Core Remaining (%) 66 | 100 . . . 33 . Volleys Fired 228 | 4 2 2 32 12 176 Largest 4 | 2 2 1 2 2 4 Hottest 280 | 80 80 60 126 126 280 Shots Fired 386 | 7 3 2 50 24 300 Gun 191 | 7 2 . 23 24 135 Cannon 188 | . 1 2 27 . 158 Launcher 7 | . . . . . 7 Special . | . . . . . . Kinetic 97 | . . . . . 97 Thermal 236 | 3 2 2 32 24 173 Explosive 4 | . . . . . 4 Electromagnetic 49 | 4 1 . 18 . 26 Robot Hit Streak 9 | 2 1 . 9 5 9 Robot Miss Streak 9 | 1 2 2 3 3 9 Penetration Max . | . . . . . . Secondary Targets 1 | . . . . . 1 Max Gunslinging Chain 1 | . . . . . 1 Shots Hit Robots 239 | 4 1 . 26 13 195 Core Hits 161 | 3 . . 14 6 138 Critical Kills . | . . . . . . Critical Parts Destroyed . | . . . . . . Critical Strikes 2 | . . . . 1 1 Burn 2 | . . . . 1 1 Melee Attacks . | . . . . . . Impact . | . . . . . . Slashing . | . . . . . . Piercing . | . . . . . . Sneak Attacks . | . . . . . . Combat Hostiles . | . . . . . . Follow-up Attacks . | . . . . . . Damage Inflicted 6616 | 63 17 . 605 218 5713 Guns 2402 | 63 . . 172 218 1949 Cannons 3035 | . 17 . 377 . 2641 Explosions 1179 | . . . 56 . 1123 Melee . | . . . . . . Ramming . | . . . . . . Kinetic 1832 | . . . . . 1832 Thermal 3396 | 21 17 . 279 218 2861 Explosive 705 | . . . . . 705 Electromagnetic 683 | 42 . . 326 . 315 Impact . | . . . . . . Slashing . | . . . . . . Piercing . | . . . . . . Highest Corruption 9 | . . . . . 9 Average Corruption 3 | . . . . . 3 Corruption Purged . | . . . . . . Corruption Blocked . | . . . . . . Effects 39 | . . . . . 39 Message Errors 10 | . . . . . 10 Matter Fused 11 | . . . . . 11 Heat Flow Errors 1 | . . . . . 1 Energy Discharges 2 | . . . . . 2 Parts Rejected 1 | . . . . . 1 Data Loss (minor) 6 | . . . . . 6 Data Loss (major) 1 | . . . . . 1 Misfires 2 | . . . . . 2 Alerts 2 | . . . . . 2 Weapon Failures 3 | . . . . . 3 Overload Shots . | . . . . . . Overflow Damage 93 | . . . 12 . 81 Projectiles 27 | . . . 12 . 15 Explosions 66 | . . . . . 66 Melee . | . . . . . . Knockbacks 11 | . . . . . 11 Impact . | . . . . . . Kinetic 10 | . . . . . 10 Secondary 1 | . . . . . 1 Self-Inflicted Damage 406 | . . . . . 406 Shots 6 | . . . . . 6 Rammed . | . . . . . . Targets Rammed . | . . . . . . Kicked . | . . . . . . Crushed . | . . . . . . Highest Temperature 368 | 36 20 . 96 171 368 Average Temperature 52 | 18 11 . 32 58 58 Received Heat Transfer 1204 | . . 141 18 169 876 Effects 3 | . . . . . 3 Interference 3 | . . . . . 3 Siege Activations . | . . . . . . Martial Activations . | . . . . . . Shielding Activations . | . . . . . . Robots Disrupted . | . . . . . . Combat Hostiles . | . . . . . . Robots Corrupted . | . . . . . . Combat Hostiles . | . . . . . . Parts Fried . | . . . . . . Impact Corruptions . | . . . . . . Robots Melted . | . . . . . . Combat Hostiles . | . . . . . . Parts Melted 11 | . . . . 3 8 Heat Transferred 5546 | 50 37 . 531 447 4481 Parts Sabotaged . | . . . . . . Parts Stolen . | . . . . . . Parts Stripped . | . . . . . . Power Chain Reactions 2 | . . . 1 . 1 Alert | -11 -10 -10 -8 -8 -6 ------- Run | Yrd Mat Sub Rec Scr Fac Maximum Alert Level 2 | . . . . . 2 Low Security (%) 68 | 100 100 . 100 . 60 Level 1 10 | . . . . . 13 Level 2 20 | . . . . . 26 Level 3 . | . . . . . . Level 4 . | . . . . . . Level 5 . | . . . . . . High Security . | . . . . . . Max Security . | . . . . . . Peak Influence 435 | 10 . . 36 . 435 Initial . | . . . . . . Average 157 | 1 . . 5 . 196 Influence Increases 1328 | 15 . 30 124 . 1159 Destroy 0b10 Robot/C 660 | . . . 60 . 600 Destroy 0b10 Robot/NC 150 | 15 . . 45 . 90 Destroy Leader 162 | . . . . . 162 Disable Machine 135 | . . . 15 . 120 Destroy Structure 131 | . . . 4 . 127 Partial Spotted 15 | . . . . . 15 Lose Combat Pursuer 75 | . . 30 . . 45 Influence Decreases 900 | 15 . 30 119 5 731 Entered New Map 5 | . . . . 5 . Time Decay 535 | 15 . 10 119 . 391 Lost Part 360 | . . 20 . . 340 Squads Dispatched 16 | . 1 . . . 15 Investigation 1 | . 1 . . . . Extermination 6 | . . . . . 6 Reinforcement 7 | . . . . . 7 Assault 2 | . . . . . 2 Garrison . | . . . . . . Intercept . | . . . . . . Searches Triggered . | . . . . . . Construction Impeded 3 | . . . . . 3 Haulers Reinforced 1 | . . . . . 1 Active Scanning Responses . | . . . . . . Cargo Convoy Interrupts 1 | . . . . . 1 Stealth | -11 -10 -10 -8 -8 -6 --------- Run | Yrd Mat Sub Rec Scr Fac Distress Signals 2 | . 2 . . . . Communications Jammed . | . . . . . . Distress Signals . | . . . . . . Times Spotted 83 | . 2 11 2 11 57 Peak Tracking Total 8 | . 2 8 1 5 7 Tactical Retreats 4 | . . 1 . . 3 ID Masks Used 1 | . . . . . 1 IFF Responses 185 | . . . . . 185 Traps | -11 -10 -10 -8 -8 -6 ------- Run | Yrd Mat Sub Rec Scr Fac Traps Triggered 4 | . . . . . 4 Indirectly 1 | . . . . . 1 Trap Hack Attempts . | . . . . . . Triggered . | . . . . . . Disarmed . | . . . . . . Reprogrammed . | . . . . . . Reused . | . . . . . . Traps Extracted . | . . . . . . Installed . | . . . . . . Triggered . | . . . . . . Machines | -11 -10 -10 -8 -8 -6 ---------- Run | Yrd Mat Sub Rec Scr Fac Machines Disabled 9 | . . . 1 . 8 Max in Single Turn 2 | . . . 1 . 2 Garrison Access 2 | . . . . . 2 Machines Repaired . | . . . . . . Machines Dismantled . | . . . . . . Machines Sabotaged . | . . . . . . Overloaded Fab Kills . | . . . . . . Hacking | -11 -10 -10 -8 -8 -6 --------- Run | Yrd Mat Sub Rec Scr Fac Machines Accessed 6 | . . . 2 3 1 Terminals . | . . . . . . Fabricators . | . . . . . . Repair Stations . | . . . . . . Recycling Units . | . . . . . . Scanalyzers . | . . . . . . Garrison Access 1 | . . . . . 1 Total Hacks 35 | . . . 24 10 1 Successful 35 | . . . 24 10 1 Failed . | . . . . . . Catastrophic . | . . . . . . Database Lockouts . | . . . . . . Manual . | . . . . . . Terminals . | . . . . . . Fabricators . | . . . . . . Repair Stations . | . . . . . . Recycling Units . | . . . . . . Scanalyzers . | . . . . . . Garrison Access 1 | . . . . . 1 Terminal Hacks 34 | . . . 24 10 . Record 27 | . . . 24 3 . Robot Analysis 6 | . . . . 6 . Proto ID Catalog 1 | . . . . 1 . Fabricator Hacks . | . . . . . . Repair Station Hacks . | . . . . . . Recycling Unit Hacks . | . . . . . . Scanalyzer . | . . . . . . Garrison Access Hacks 1 | . . . . . 1 Seal Access 1 | . . . . . 1 Unauthorized Hacks . | . . . . . . Terminals . | . . . . . . Fabricators . | . . . . . . Repair Stations . | . . . . . . Recycling Units . | . . . . . . Scanalyzers . | . . . . . . Garrison Access . | . . . . . . Data Cores Recovered 3 | . 1 . . . 2 Used . | . . . . . . Hacking Detections . | . . . . . . Full Trace Events . | . . . . . . Feedback Events . | . . . . . . Feedback Blocked . | . . . . . . Robot Schematics Acquired . | . . . . . . Robots Built . | . . . . . . Authchips . | . . . . . . Time . | . . . . . . Total Robot Build Rating . | . . . . . . Part Schematics Acquired . | . . . . . . Parts Built . | . . . . . . Authchips . | . . . . . . Time . | . . . . . . Total Part Build Rating . | . . . . . . Parts Repaired . | . . . . . . Time . | . . . . . . Parts Recycled . | . . . . . . Recycled Matter . | . . . . . . Retrieved Matter . | . . . . . . Retrieved Components . | . . . . . . Parts Scanalyzed . | . . . . . . Part Schematics Acquired . | . . . . . . Parts Damaged . | . . . . . . Bothacking | -11 -10 -10 -8 -8 -6 ------------ Run | Yrd Mat Sub Rec Scr Fac Used RIF Installer . | . . . . . . Robots Hacked . | . . . . . . Non-combat . | . . . . . . Combat . | . . . . . . Robot Hacks Applied . | . . . . . . Relay Couplers Released 1 | . . . . . 1 Machine Destruction 1 | . . . . . 1 Fabnet Peak Effective % . | . . . . . . Robots Rewired . | . . . . . . Allies Hacked . | . . . . . . Hacks Repelled . | . . . . . . Allies | -11 -10 -10 -8 -8 -6 -------- Run | Yrd Mat Sub Rec Scr Fac Total Allies . | . . . . . . Largest Group . | . . . . . . Highest-Rated Group . | . . . . . . Highest-Rated Ally . | . . . . . . Total Orders . | . . . . . . Ally Attacks . | . . . . . . Total Damage . | . . . . . . Kills . | . . . . . . Allies Corrupted . | . . . . . . Allies Melted 3 | . . 1 . 2 . Intel | -11 -10 -10 -8 -8 -6 ------- Run | Yrd Mat Sub Rec Scr Fac Active Infowar (turns) 1301 | . . . . . 1301 Traps 853 | . . . . . 853 ID Mask 448 | . . . . . 448 Robot Analysis Total 6 | . . . . 6 . Derelict Logs Recovered . | . . . . . . Drone Launches . | . . . . . . Drone Recoveries . | . . . . . . Exploration | -11 -10 -10 -8 -8 -6 ------------- Run | Yrd Mat Sub Rec Scr Fac Turns Passed 6406 | 68 120 105 683 1926 3504 Spaces Moved 3525 | 45 92 68 455 1167 1698 Core 253 | 13 . . . 9 231 Treads . | . . . . . . Legs 2699 | 32 92 68 455 1158 894 Wheels 181 | . . . . . 181 Hover 392 | . . . . . 392 Flight . | . . . . . . Fastest Speed 50 | 50 120 120 120 95 52 Average Speed 142 | 99 120 120 120 124 164 Slowest Speed 500 | 120 120 120 190 300 500 Overloaded Moves . | . . . . . . Propulsion Burnouts . | . . . . . . Robots Hopped . | . . . . . . Potential Cave-ins . | . . . . . . Cave-ins Triggered . | . . . . . . Exploration Rate (%) 42 | 4 31 10 95 75 41 Regions Visited 5 Branch Regions 3 Pre-discovered Areas . | . . . . . . Known Exits Taken . | . . . . . . Unknown Exits Taken 5 | 1 1 1 1 1 . Scrap Searched 6 | . . . . 6 . Spaces Dug 2 | . . . . . 2 Terrain Destroyed 162 | . . . 4 . 158 Melee . | . . . . . . Projectile 17 | . . . . . 17 AOE 145 | . . . 4 . 141 Terrain Rammed . | . . . . . . Walls Destroyed . | . . . . . . Machines Disabled . | . . . . . . Actions | -11 -10 -10 -8 -8 -6 --------- Run | Yrd Mat Sub Rec Scr Fac Total 4522 | 62 98 89 539 1623 2111 Wait 589 | . . 19 35 402 133 Move 3520 | 44 91 67 454 1166 1698 Hop . | . . . . . . Pick Up 60 | 7 2 1 8 8 34 Fast Attach 19 | . . . . 9 10 Attach 55 | 5 1 . 6 . 43 Detach 9 | . 1 . . 1 7 Swap 14 | . 1 . 1 8 4 Drop 28 | 2 . . 3 17 6 Fire 228 | 4 2 2 32 12 176 Melee . | . . . . . . Ram . | . . . . . . Kick . | . . . . . . Crush . | . . . . . . Escape Stasis . | . . . . . . Rewire . | . . . . . . Trap . | . . . . . . Miscellaneous . | . . . . . . Route ------- -11/Scrapyard -10/Materials -10/Subcaves -8/Recycling (discovered 2 exits: *Fac / *Scr) -8/Scraptown (discovered 2 exits: *Fac x2) -6/Factory (discovered 1 exit: [*Ext]) History --------- Turn | Location | Event 3 | -11/Scrapyard | Discovered new exit (range 16) 69 | -11/Scrapyard | Entered Materials 70 | -10/Materials | Met a group of wandering Federalists 179 | -10/Materials | Discovered new exit (range 9) 189 | -10/Materials | Entered Subcaves 190 | -10/Subcaves | Continued accompanying wandering Federalists (1) 209 | -10/Subcaves | A swath of the cavern ceiling suddenly collapsed 279 | -10/Subcaves | A Subdweller sparked back to life 279 | -10/Subcaves | A Subdweller sparked back to life 279 | -10/Subcaves | A Subdweller sparked back to life 282 | -10/Subcaves | Discovered new exit (range 10) 294 | -10/Subcaves | Entered Recycling 315 | -8/Recycling | Build established: Mutant 619 | -8/Recycling | Discovered new exit (range 8) 940 | -8/Recycling | Scanned before Scraplab entrance 958 | -8/Recycling | Entered Scraplab 974 | -8/Recycling | Discovered new exit (range 3) 977 | -8/Recycling | Entered Scraptown 1185 | -8/Scraptown | Heard Great Nut preacher, LISTEN AND RECITE! 1348 | -8/Scraptown | Discovered new exit (range 5) 1449 | -8/Scraptown | Visited Junk Repository 1478 | -8/Scraptown | Visited The Evicted 1516 | -8/Scraptown | Visited UFD Registry 1516 | -8/Scraptown | Registered with UFD as "Longmind" 1547 | -8/Scraptown | Visited Science Guys 1587 | -8/Scraptown | Visited Botcube Research 1619 | -8/Scraptown | Visited Curators Association 1644 | -8/Scraptown | Visited A0-MCA Data Center 1652 | -8/Scraptown | Given a B- rating by A0-MCA 1656 | -8/Scraptown | Found A0-MCA's Component Scanner 1680 | -8/Scraptown | Visited Scrapoid Pod Storage 1700 | -8/Scraptown | Visited Analyses Database 1728 | -8/Scraptown | Visited Derelict Rescue Squad 1775 | -8/Scraptown | Visited Scrap Suit Storage 1796 | -8/Scraptown | Visited DA-N13 Charitable Foundation 1802 | -8/Scraptown | Found DCF Scrap (31 items) 2134 | -8/Scraptown | Build established: Derelict-Mutant 2201 | -8/Scraptown | Met Optimus 2201 | -8/Scraptown | Accepted into 0bPrime 2601 | -8/Scraptown | Civil war broke out across Scraptown 2653 | -8/Scraptown | Lost 3 allies 2690 | -8/Scraptown | Core integrity fell below 50% 2735 | -8/Scraptown | Visited Chapter 10 2744 | -8/Scraptown | Found ID Mask 2813 | -8/Scraptown | Discovered new exit (range 10) 2903 | -8/Scraptown | Entered Factory 2903 | -6/Factory | Evolved 8 slots: Power x1, Propulsion x2, Utility x3, Weapon x2 2917 | -6/Factory | ID Mask engaged 3205 | -6/Factory | Build established: Scavenger-Mutant 3365 | -6/Factory | ID Mask no longer valid 3880 | -6/Factory | Lost 6 parts (1p3n1u1w) 3945 | -6/Factory | Lost 3 parts (1u2w) 4249 | -6/Factory | Build established: Scavenger-Tank 4312 | -6/Factory | Lost 3 parts (1p1n1u) 4315 | -6/Factory | Cargo convoy interrupted 4768 | -6/Factory | Build established: Tank 4929 | -6/Factory | Lost 7 parts (1p1n2u3w) 5036 | -6/Factory | Core integrity fell below 50% 5064 | -6/Factory | Lost 4 parts (1u3w) 5770 | -6/Factory | Build established: Mutant 6089 | -6/Factory | Lost 4 parts (1p1u2w) 6169 | -6/Factory | Core integrity fell below 20% 6226 | -6/Factory | Lost 6 parts (1p2n2u1w) 6391 | -6/Factory | Discovered new exit (range 15) 6407 | -6/Factory | Destroyed by S-27 Virus with Autogun Last Messages --------------- K-01 Serf collects debris. Slug penetrates Wall. U-05 Engineer works on Assembly Bed. K-01 Serf collects debris. Slug penetrates G-50 Soldier. U-05 Engineer works on Assembly Bed. K-01 Serf collects debris. Matter Pump disabled. U-05 Engineer works on Assembly Bed. K-01 Serf collects debris. U-05 Engineer works on Assembly Bed. NZ8MAKZC:FZ:B,/HNMRNEE8O Hvy. Flak Cannon destroyed. Slug penetrates Wall. NTXJYTKI6LTUUP6B2SQ%I